Workbook

Sheet Summary
A1: ERI Configuration Management System
A3: Tenderer:
A4: Evaluated by:
A6: Evaluation Criteria
A8: Important Notes:
A9: 1. Please indicate location of answers to the criteria and where required answer yes or no. To be included in Comments tab per sheet.
A10: 2. The qualified solution service provider shall do a product demo of the proposed product to be presented to Eskom. This is mandatory.
A11: 3. "Tenderer(s) to take note of the following key instructions - Please follow the structure of the technical evaluation sheet provided when responding to this enquiry.
A12: 4. DO NOT just give YES/NO kind of response to the questions which require more details and information.
A13: 5. Provide full information to your answer(s) in line with the details of the question(s) in point."
E17: Paper Evaluation (100%)
B18: Weighting | D18: Total | E18: Paper Evaulation | F18: Final Score
A19: Paper evaulation | B19: Functional | C19: 0.4 | D19: =C19*B34 -> 0 | E19: =(D19+D20+D21+D22+D23) -> 0 | F19: =E19 -> 0
B20: Technical | C20: 0.15 | D20: =C20*B35 -> 0
B21: Security | C21: 0.15 | D21: =C21*B36 -> 0
B22: Integration & Testing | C22: 0.15 | D22: =C22*B37 -> 0
B23: Cloud | C23: 0.15 | D23: =C23*B38 -> 0
B24: Paper Evaluation (100%) Score | F24: =SUM(D19:D23) -> 0
A26: PLEASE NOTE:
A27: Functional weighting is highest at 40%, and the rest of the sections 15%
A28: The threshold for the Final score (Paper Evaluation) is 70% (Cell F24)
A29: The Paper Evaluation makes up 100% of the Final Score
A31: Evaluation on Weighted Criteria
A33: Evaluation on Weighted Criteria
A34: Sum of Weighted Question (Functional) | B34: =Functional!M23 -> 0
A35: Sum of Weighted Question (Technical) | B35: =Technical!M14 -> 0
A36: Sum of Weighted Question (Security) | B36: =Security!M21 -> 0
A37: Sum of Weighted Question (Integration and testing) | B37: ='Integration and Testing'!M26 -> 0
A38: Sum of Weighted Question (Cloud) | B38: =Cloud!M37 -> 0

Sheet Functional
A1: =Technical!A1 -> ERI Configuration Management System
A2: CORP xxxx Tender
A3: Tenderer:
A4: Evaluated by:
A6: Evaluation Criteria - Functional
I7: Weight (agreed by evaluation team members) | K7: Score (determined by each evaluation team member during evaluation. Will be averaged for final scores)
A8: ID | B8: Type | C8: Criterion | D8: Solution | E8: Functional Requirement | F8: Requirement description | G8: Vendor Comments | H8: Priority Description | I8: Priority | J8: Weighted Question | K8: Scoring | L8: Answer (0,50,100%) | M8: Weighted Answer | N8: Internal Comment
A9: 1 | B9: Meeting the Scope of Work Required | C9: How well has the Tenderer described how scope requirements will be met? Do they understand what needs to be done? List concerns in Comments. | D9: How well has the Tenderer described how scope requirements will be met? Do they understand what needs to be done? List concerns in Comments. | E9: Register components in the system upon arrival at work centres | F9: Ability to create component identity by: 1.Scanning the marked components into the system (Secondary requirement to procure handheld devices) or 2.Allow manual entry into the system by an authorized person 3.Ability for all Eskom employees to view all technical information pertaining to the registered components 4.Ability to track components as they move through the refurbishment life cycle | H9: Show stopper | I9: =IF(H9='Priority Ratings'!$C$21,'Priority Ratings'!$B$21,IF(H9='Priority Ratings'!$C$22,'Priority Ratings'!$B$22,IF(H9='Priority Ratings'!$C$23,'Priority Ratings'!$B$23,IF(H9='Priority Ratings'!$C$24,'Priority Ratings'!$B$24,IF(H9='Priority Ratings'!$C$25,'Priority Ratings'!$B$25,IF(H9='Priority Ratings'!$C$26,'Priority Ratings'!$B$26,IF(H9='Priority Ratings'!$C$27,'Priority Ratings'!$B$27,"No Rating"))))))) -> 6 | J9: =I9/I$23 -> 0.08571428571 | K9: 100%: Fully comply with requirement 50%: Partially comply will require development/ customisation 0%: No compliance | M9: =J9*L9 -> 0
A10: 2 | B10: Meeting the Scope of Work Required | C10: How well has the Tenderer described how scope requirements will be met? Do they understand what needs to be done? List concerns in Comments. | D10: ERI Configuration Management System | E10: Register components in the system upon arrival at work centres | F10: The Component technical information must be captured according to the following metadata structure: 1. Plant 2. Unit 3. Technology 4. Service Report (Service Report number) a. Monitoring Documentation (Vibration Analysis) b. Module Assembly (HP,IP, LP, Gen etc.) c. Component ( Blades, Diaphragms etc.) i. Project Number ii. WBS Elements iii. PQP iv. Engineering Project Number v. Engineering Drawings vi. Serial number | H10: Show stopper | I10: =IF(H10='Priority Ratings'!$C$21,'Priority Ratings'!$B$21,IF(H10='Priority Ratings'!$C$22,'Priority Ratings'!$B$22,IF(H10='Priority Ratings'!$C$23,'Priority Ratings'!$B$23,IF(H10='Priority Ratings'!$C$24,'Priority Ratings'!$B$24,IF(H10='Priority Ratings'!$C$25,'Priority Ratings'!$B$25,IF(H10='Priority Ratings'!$C$26,'Priority Ratings'!$B$26,IF(H10='Priority Ratings'!$C$27,'Priority Ratings'!$B$27,"No Rating"))))))) -> 6 | J10: 0.08571428571 | K10: 100%: Fully comply with requirement 50%: Partially comply will require development/ customisation 0%: No compliance | M10: 0
A11: 3 | B11: Meeting the Scope of Work Required | C11: How well has the Tenderer described how scope requirements will be met? Do they understand what needs to be done? List concerns in Comments. | D11: ERI Configuration Management System | E11: Previous Experience | F11: Tenderer or via joint venture partner does have prior or past experience in implemention of a Configuration Management System. | H11: Show stopper | I11: =IF(H11='Priority Ratings'!$C$21,'Priority Ratings'!$B$21,IF(H11='Priority Ratings'!$C$22,'Priority Ratings'!$B$22,IF(H11='Priority Ratings'!$C$23,'Priority Ratings'!$B$23,IF(H11='Priority Ratings'!$C$24,'Priority Ratings'!$B$24,IF(H11='Priority Ratings'!$C$25,'Priority Ratings'!$B$25,IF(H11='Priority Ratings'!$C$26,'Priority Ratings'!$B$26,IF(H11='Priority Ratings'!$C$27,'Priority Ratings'!$B$27,"No Rating"))))))) -> 6 | J11: 0.08571428571 | K11: 100%: Fully comply with requirement 50%: Partially comply will require development/ customisation 0%: No compliance | M11: =J11*L11 -> 0
A12: 4 | B12: Meeting the Scope of Work Required | C12: How well has the Tenderer described how scope requirements will be met? Do they understand what needs to be done? List concerns in Comments. | D12: ERI Configuration Management System | E12: Production Quality Package (PQP’s) | F12: 1. Ability to develop and print PQP’s directly in the system 2. Ability to electronically capture PQP results of a specific refurbishment step on the system 2.1 Electronic identification of operator must be enabled 3. PQP’s must be automatically saved on the system when the operator submits the results. 4. The system must be able to link to different Document Management Systems to access relevant procedures and documents. 5. The system should be able to get information from the following sytems SAP (PS, PP, SD & MM) and Primavera 6. PQP's to be linked with all Quality documentation and procedures. 7. Standard generic Scope of Work (SOW) with Bill of Material (BOM) stored in a centralized data management system. SOW needs to cover all possible work that may be completed on the specific component. All BOM, check sheets and PQP’s need to be derived from the selected SOW’s. Project duration for specific SOW must also be derived based on the selection. 8. Electronic check sheet and PQP’s at point of use (control points) during the refurbishment phase (Control points will be the identified at work centres). The supplier must assist in developing and implementing all digitalized Quality Control documentation. 9. All Quality documentation must be completed and verified electronically with electronic signatures. 10. Only certified and qualified employees may be allowed to execute and certify quality documentation. | H12: Show stopper | I12: =IF(H12='Priority Ratings'!$C$21,'Priority Ratings'!$B$21,IF(H12='Priority Ratings'!$C$22,'Priority Ratings'!$B$22,IF(H12='Priority Ratings'!$C$23,'Priority Ratings'!$B$23,IF(H12='Priority Ratings'!$C$24,'Priority Ratings'!$B$24,IF(H12='Priority Ratings'!$C$25,'Priority Ratings'!$B$25,IF(H12='Priority Ratings'!$C$26,'Priority Ratings'!$B$26,IF(H12='Priority Ratings'!$C$27,'Priority Ratings'!$B$27,"No Rating"))))))) -> 6 | J12: 0.08571428571 | K12: 100%: Fully comply with requirement 50%: Partially comply will require development/ customisation 0%: No compliance | M12: 0
A13: 5 | B13: Meeting the Scope of Work Required | C13: How well has the Tenderer described how scope requirements will be met? Do they understand what needs to be done? List concerns in Comments. | D13: ERI Configuration Management System | E13: Revision Control | F13: Ability for the system to record all changes/updates made to components captured in the system. The system must have a fully functional documentation management system with workflows associated. | H13: Show stopper | I13: =IF(H13='Priority Ratings'!$C$21,'Priority Ratings'!$B$21,IF(H13='Priority Ratings'!$C$22,'Priority Ratings'!$B$22,IF(H13='Priority Ratings'!$C$23,'Priority Ratings'!$B$23,IF(H13='Priority Ratings'!$C$24,'Priority Ratings'!$B$24,IF(H13='Priority Ratings'!$C$25,'Priority Ratings'!$B$25,IF(H13='Priority Ratings'!$C$26,'Priority Ratings'!$B$26,IF(H13='Priority Ratings'!$C$27,'Priority Ratings'!$B$27,"No Rating"))))))) -> 6 | J13: 0.08571428571 | K13: 100%: Fully comply with requirement 50%: Partially comply will require development/ customisation 0%: No compliance | M13: 0
A14: 6 | B14: Meeting the Scope of Work Required | C14: How well has the Tenderer described how scope requirements will be met? Do they understand what needs to be done? List concerns in Comments. | D14: ERI Configuration Management System | E14: Component Design Drawings | F14: Ability to view the below listed file formats available on Solidworks The system must support the below listed file formats: The file types available from SolidWorks are: • SOLIDWORKS Assembly (.asm; .sldasm) • SOLIDWORKS Composer (.smg) • SOLIDWORKS Part (.prt; .sldprt) • 3D Manufacturing Format (.3mf) • 3D XML (.3dxml) • ACIS (.sat) • Additive Manufacturing File (.amf) • Adobe Illustrator File (.ai) • Adobe Photoshop Files (.psd) • Adobe Portable Document Format (.pdf) • Assembly Templates (.asmdot) • CATIA Graphics (.cgr) • eDrawings (.easm) • HCG (.hcg) • HOOPS HSF (.hsf) • IFC 2x3 (.ifc) • IFC 4 (.ifc) • IGES (.igs) • JPEG (.jpg) • Microsoft XAML (.xaml) • Parasolid (.x_t; .x_b) • Polygon File Format (.ply) • Portable Network Graphics (.asm) • STEP (.step; .stp) • STL (.stl) • Tif (.tif) • VRLM (.wrl) | H14: Show stopper | I14: =IF(H14='Priority Ratings'!$C$21,'Priority Ratings'!$B$21,IF(H14='Priority Ratings'!$C$22,'Priority Ratings'!$B$22,IF(H14='Priority Ratings'!$C$23,'Priority Ratings'!$B$23,IF(H14='Priority Ratings'!$C$24,'Priority Ratings'!$B$24,IF(H14='Priority Ratings'!$C$25,'Priority Ratings'!$B$25,IF(H14='Priority Ratings'!$C$26,'Priority Ratings'!$B$26,IF(H14='Priority Ratings'!$C$27,'Priority Ratings'!$B$27,"No Rating"))))))) -> 6 | J14: 0.08571428571 | K14: 100%: Fully comply with requirement 50%: Partially comply will require development/ customisation 0%: No compliance | M14: 0
A15: 7 | B15: Meeting the Scope of Work Required | C15: How well has the Tenderer described how scope requirements will be met? Do they understand what needs to be done? List concerns in Comments. | D15: ERI Configuration Management System | E15: Information flow through integration between the Configuration Management Solution and following systems: SAP PM, SAP PP, SAP QIM, SAP PS, Solidworks, NDT Manager, OpenText DMS. | F15: Work order data, Project Schedule Data, Issue and Incident Management Data, Design Drawings, Inspection Data, Worflow and Routing Data , | H15: Show stopper | I15: =IF(H15='Priority Ratings'!$C$21,'Priority Ratings'!$B$21,IF(H15='Priority Ratings'!$C$22,'Priority Ratings'!$B$22,IF(H15='Priority Ratings'!$C$23,'Priority Ratings'!$B$23,IF(H15='Priority Ratings'!$C$24,'Priority Ratings'!$B$24,IF(H15='Priority Ratings'!$C$25,'Priority Ratings'!$B$25,IF(H15='Priority Ratings'!$C$26,'Priority Ratings'!$B$26,IF(H15='Priority Ratings'!$C$27,'Priority Ratings'!$B$27,"No Rating"))))))) -> 6 | J15: 0.08571428571 | K15: 100%: Fully comply with requirement 50%: Partially comply will require development/ customisation 0%: No compliance | M15: =J15*L15 -> 0
A16: 8 | B16: Meeting the Scope of Work Required | C16: How well has the Tenderer described how scope requirements will be met? Do they understand what needs to be done? List concerns in Comments. | D16: ERI Configuration Management System | E16: Reporting | F16: •• Ability to graphically view below reports using analytic capabilities • Analytics capability- work centres Non-Destructive Testing (NDT) report • Non-conformance reports • Production output reports • Electrical reports • Service Report • PQP (Part 1-4) • Engineering Memo’s • Inspection Report • NDE Reports • Technical Notifications • SOW • Checksheets • Work in Progress reporting • Workload distribution reporting • Ability to use digital footage for progress update on projects • System must be able to produce a digital twin of the specific unit operating in the power station with all linked technical information for that unit. | H16: Show stopper | I16: =IF(H16='Priority Ratings'!$C$21,'Priority Ratings'!$B$21,IF(H16='Priority Ratings'!$C$22,'Priority Ratings'!$B$22,IF(H16='Priority Ratings'!$C$23,'Priority Ratings'!$B$23,IF(H16='Priority Ratings'!$C$24,'Priority Ratings'!$B$24,IF(H16='Priority Ratings'!$C$25,'Priority Ratings'!$B$25,IF(H16='Priority Ratings'!$C$26,'Priority Ratings'!$B$26,IF(H16='Priority Ratings'!$C$27,'Priority Ratings'!$B$27,"No Rating"))))))) -> 6 | J16: 0.08571428571 | K16: 100%: Fully comply with requirement 50%: Partially comply will require development/ customisation 0%: No compliance | M16: 0
A17: 9 | B17: Meeting the Scope of Work Required | C17: How well has the Tenderer described how scope requirements will be met? Do they understand what needs to be done? List concerns in Comments. | D17: ERI Configuration Management System | E17: Nonconformance Management | F17: • Identification, reporting and management of nonconformances. | H17: Very important | I17: 4 | J17: =I17/I$23 -> 0.05714285714 | K17: 100%: Fully comply with requirement 50%: Partially comply will require development/ customisation 0%: No compliance
A18: 10 | B18: Meeting the Scope of Work Required | C18: How well has the Tenderer described how scope requirements will be met? Do they understand what needs to be done? List concerns in Comments. | D18: ERI Configuration Management System | E18: CNC Machine integration | F18: • Integration with CNC machines for program management and automating the logging of measurements at Workshops and Sites. | H18: Very important | I18: 4 | J18: 0.05714285714 | K18: 100%: Fully comply with requirement 50%: Partially comply will require development/ customisation 0%: No compliance
A19: 11 | B19: Meeting the Scope of Work Required | C19: How well has the Tenderer described how scope requirements will be met? Do they understand what needs to be done? List concerns in Comments. | D19: ERI Configuration Management System | E19: Document Management and Data Storage | F19: • Centralised Configuration Management Database with documentation management and workflow capabilities for document management and long-term storage. • The system must have the capability to workflow and manage all Microsoft Office file formats as well as PDF’s. • OpenText is currently listed as the Document Management System. Data to be preferably on OpenText. | H19: Show stopper | I19: 6 | J19: 0.08571428571 | K19: 100%: Fully comply with requirement 50%: Partially comply will require development/ customisation 0%: No compliance
A20: 12 | B20: Meeting the Scope of Work Required | C20: How well has the Tenderer described how scope requirements will be met? Do they understand what needs to be done? List concerns in Comments. | D20: ERI Configuration Management System | E20: Allocation of tasks | F20: · Allocate specific tasks with product deliverables and integrate with execution plan. | H20: Very important | I20: 4 | J20: 0.05714285714 | K20: 100%: Fully comply with requirement 50%: Partially comply will require development/ customisation 0%: No compliance
A21: 13 | B21: Meeting the Scope of Work Required | C21: How well has the Tenderer described how scope requirements will be met? Do they understand what needs to be done? List concerns in Comments. | D21: ERI Configuration Management System | E21: Workflow | F21: System needs to have workflow functionality that will include: • Notifications – Email communication via Exchange Online • Escalations to higher level after set time as per procedure • Approvals/ Rejections • Acceptance • Solution must allow communication with external stakeholders | H21: Very important | I21: =IF(H21='Priority Ratings'!$C$21,'Priority Ratings'!$B$21,IF(H21='Priority Ratings'!$C$22,'Priority Ratings'!$B$22,IF(H21='Priority Ratings'!$C$23,'Priority Ratings'!$B$23,IF(H21='Priority Ratings'!$C$24,'Priority Ratings'!$B$24,IF(H21='Priority Ratings'!$C$25,'Priority Ratings'!$B$25,IF(H21='Priority Ratings'!$C$26,'Priority Ratings'!$B$26,IF(H21='Priority Ratings'!$C$27,'Priority Ratings'!$B$27,"No Rating"))))))) -> 4 | J21: =I21/I$23 -> 0.05714285714 | K21: 100%: Fully comply with requirement 50%: Partially comply will require development/ customisation 0%: No compliance | M21: 0
G23: Totals | I23: =SUM(I9:I21) -> 70 | J23: =SUM(J9:J21) -> 1 | M23: =SUM(M9:M21) -> 0

Sheet Technical
A1: ERI Configuration Management System
A2: CORP xxxx Tender
A3: Tenderer:
A4: Evaluated by:
A6: Evaluation Criteria
I7: Weight (agreed by evaluation team members) | K7: Score (determined by each evaluation team member during evaluation. Will be averaged for final scores)
A8: ID | B8: Type | C8: Solution | D8: Criterion | E8: Functional Requirement | F8: Requirement description | G8: Vendor Comments | H8: Priority Description | I8: Priority | J8: Weighted Question | K8: Scoring | L8: Answer (0,50,100%) | M8: Weighted Answer | N8: Internal Comment
A9: 1 | B9: Meeting the Scope of Work Required | C9: ERI Configuration Management System | D9: Compatibility Certificate from Microsoft Azure | E9: Information Security | F9: Technical Support Team Access Control and User Account Management Does your Proposed Solution comply and is Compatible with Microsoft Azure, OAUTH2 | H9: Critical | I9: =IF(H9='Priority Ratings'!$C$21,'Priority Ratings'!$B$21,IF(H9='Priority Ratings'!$C$22,'Priority Ratings'!$B$22,IF(H9='Priority Ratings'!$C$23,'Priority Ratings'!$B$23,IF(H9='Priority Ratings'!$C$24,'Priority Ratings'!$B$24,IF(H9='Priority Ratings'!$C$25,'Priority Ratings'!$B$25,IF(H9='Priority Ratings'!$C$26,'Priority Ratings'!$B$26,IF(H9='Priority Ratings'!$C$27,'Priority Ratings'!$B$27,"No Rating"))))))) -> 5 | J9: =I9/I$14 -> 0.3571428571 | K9: 100%: Fully comply with requirement 50%: Partially comply will require development/ customisation 0%: No compliance | M9: =J9*L9 -> 0
A10: 2 | B10: Meeting the Scope of Work Required | C10: ERI Configuration Management System | D10: Compatability Certificate from Microsoft Edge and FireFox | E10: Information Security | F10: Browser Accessability Please advise if Solution is compatible with: 1. Microsoft Edge 2. Firefox 3. SAP system 4. Primavera | H10: Important | I10: =IF(H10='Priority Ratings'!$C$21,'Priority Ratings'!$B$21,IF(H10='Priority Ratings'!$C$22,'Priority Ratings'!$B$22,IF(H10='Priority Ratings'!$C$23,'Priority Ratings'!$B$23,IF(H10='Priority Ratings'!$C$24,'Priority Ratings'!$B$24,IF(H10='Priority Ratings'!$C$25,'Priority Ratings'!$B$25,IF(H10='Priority Ratings'!$C$26,'Priority Ratings'!$B$26,IF(H10='Priority Ratings'!$C$27,'Priority Ratings'!$B$27,"No Rating"))))))) -> 3 | J10: =I10/I$14 -> 0.2142857143 | K10: 100%: Fully comply with requirement 50%: Partially comply will require development/ customisation 0%: No compliance | M10: 0
A11: 3 | B11: Meeting the Scope of Work Required | C11: ERI Configuration Management System | D11: Network Printing | E11: Network | F11: Network Printing Please advise if the Solution allows network printing | H11: Useful | I11: =IF(H11='Priority Ratings'!$C$21,'Priority Ratings'!$B$21,IF(H11='Priority Ratings'!$C$22,'Priority Ratings'!$B$22,IF(H11='Priority Ratings'!$C$23,'Priority Ratings'!$B$23,IF(H11='Priority Ratings'!$C$24,'Priority Ratings'!$B$24,IF(H11='Priority Ratings'!$C$25,'Priority Ratings'!$B$25,IF(H11='Priority Ratings'!$C$26,'Priority Ratings'!$B$26,IF(H11='Priority Ratings'!$C$27,'Priority Ratings'!$B$27,"No Rating"))))))) -> 2 | J11: =I11/I$14 -> 0.1428571429 | K11: 100%: Fully comply with requirement 50%: Partially comply will require development/ customisation 0%: No compliance | M11: 0
A12: 4 | B12: Meeting the Scope of Work Required | C12: ERI Configuration Management System | D12: Scanning | E12: Handheld scanning | F12: Ability to connect wirelessly to the Handheld scanners. | H12: Very important | I12: =IF(H12='Priority Ratings'!$C$21,'Priority Ratings'!$B$21,IF(H12='Priority Ratings'!$C$22,'Priority Ratings'!$B$22,IF(H12='Priority Ratings'!$C$23,'Priority Ratings'!$B$23,IF(H12='Priority Ratings'!$C$24,'Priority Ratings'!$B$24,IF(H12='Priority Ratings'!$C$25,'Priority Ratings'!$B$25,IF(H12='Priority Ratings'!$C$26,'Priority Ratings'!$B$26,IF(H12='Priority Ratings'!$C$27,'Priority Ratings'!$B$27,"No Rating"))))))) -> 4 | J12: =I12/I$14 -> 0.2857142857 | K12: 100%: Fully comply with requirement 50%: Partially comply will require development/ customisation 0%: No compliance | M12: 0
G14: Totals | I14: =SUM(I9:I12) -> 14 | J14: =SUM(J9:J12) -> 1 | M14: =SUM(M9:M12) -> 0

Sheet Security
A1: ERI Configuration Management System
A2: CORP xxxx Tender
A3: Tenderer:
A4: Evaluated by:
A6: Evaluation Criteria
I7: Weight (agreed by evaluation team members) | K7: Score (determined by each evaluation team member during evaluation. Will be averaged for final scores)
A8: ID | B8: Type | C8: Solution | D8: Criterion | E8: Functional Requirement | F8: Requirement description | G8: Vendor Comments | H8: Priority Description | I8: Priority | J8: Weighted Question | K8: Scoring | L8: Answer (0,50,100%) | M8: Weighted Answer | N8: Internal Comment
A9: 1 | B9: Meeting the Scope of Work Required | C9: ERI Configuration Management System | D9: Compatibility Authentication Mechanism/s Substantiate by providing details of standards that are supported | E9: Information Security | F9: Authentication for the following Categories: * Technical Support Team * User * System Access Control and User Account Management Does your Proposed Solution comply and is Compatible with Microsoft Active Directory, AD Azure, SAML2, OAuth2 and/or LDAPv3, MFA ? | H9: Very important | I9: =IF(H9='Priority Ratings'!$C$21,'Priority Ratings'!$B$21,IF(H9='Priority Ratings'!$C$22,'Priority Ratings'!$B$22,IF(H9='Priority Ratings'!$C$23,'Priority Ratings'!$B$23,IF(H9='Priority Ratings'!$C$24,'Priority Ratings'!$B$24,IF(H9='Priority Ratings'!$C$25,'Priority Ratings'!$B$25,IF(H9='Priority Ratings'!$C$26,'Priority Ratings'!$B$26,IF(H9='Priority Ratings'!$C$27,'Priority Ratings'!$B$27,"No Rating"))))))) -> 4 | J9: =I9/I$21 -> 0.08510638298 | K9: 100%: Fully comply with requirement 50%: Partially comply will require development/ customisation 0%: No compliance | M9: =J9*L9 -> 0
A10: 2 | B10: Meeting the Scope of Work Required | C10: ERI Configuration Management System | D10: Certificate from the OEM or Reputable Authority | E10: Information Security | F10: Information Security Threat Management Please advise to what extend is your Solution Compatible with each of below: 1. Malware 2. Cyber Attack 3. Anti-Virus | H10: Very important | I10: =IF(H10='Priority Ratings'!$C$21,'Priority Ratings'!$B$21,IF(H10='Priority Ratings'!$C$22,'Priority Ratings'!$B$22,IF(H10='Priority Ratings'!$C$23,'Priority Ratings'!$B$23,IF(H10='Priority Ratings'!$C$24,'Priority Ratings'!$B$24,IF(H10='Priority Ratings'!$C$25,'Priority Ratings'!$B$25,IF(H10='Priority Ratings'!$C$26,'Priority Ratings'!$B$26,IF(H10='Priority Ratings'!$C$27,'Priority Ratings'!$B$27,"No Rating"))))))) -> 4 | J10: =I10/I$21 -> 0.08510638298 | K10: 100%: Fully comply with requirement 50%: Partially comply will require development/ customisation 0%: No compliance | M10: 0
A11: 3 | B11: Meeting the Scope of Work Required | C11: ERI Configuration Management System | D11: Substantiate by providing details of standards that are supported and ensure that these Capabilities are detailed in the proposal | E11: Information Security | F11: E2E Encryption Encryption of Data in transit and in Rest Does your Proposed Solution comply and is compatible with the latest TLS and Cypher Standards to protect and encrypt data? | H11: Critical | I11: =IF(H11='Priority Ratings'!$C$21,'Priority Ratings'!$B$21,IF(H11='Priority Ratings'!$C$22,'Priority Ratings'!$B$22,IF(H11='Priority Ratings'!$C$23,'Priority Ratings'!$B$23,IF(H11='Priority Ratings'!$C$24,'Priority Ratings'!$B$24,IF(H11='Priority Ratings'!$C$25,'Priority Ratings'!$B$25,IF(H11='Priority Ratings'!$C$26,'Priority Ratings'!$B$26,IF(H11='Priority Ratings'!$C$27,'Priority Ratings'!$B$27,"No Rating"))))))) -> 5 | J11: 0.1063829787 | K11: 100%: Fully comply with requirement 50%: Partially comply will require development/ customisation 0%: No compliance | M11: 0
A12: 4 | B12: Meeting the Scope of Work Required | C12: ERI Configuration Management System | D12: Substantiate by providing details of standards that are supported and ensure that these Capabilities are detailed in the proposal | E12: Information Security | F12: POPIA Does your Proposed Solution take the POPIA requirements into consideration | H12: Critical | I12: =IF(H12='Priority Ratings'!$C$21,'Priority Ratings'!$B$21,IF(H12='Priority Ratings'!$C$22,'Priority Ratings'!$B$22,IF(H12='Priority Ratings'!$C$23,'Priority Ratings'!$B$23,IF(H12='Priority Ratings'!$C$24,'Priority Ratings'!$B$24,IF(H12='Priority Ratings'!$C$25,'Priority Ratings'!$B$25,IF(H12='Priority Ratings'!$C$26,'Priority Ratings'!$B$26,IF(H12='Priority Ratings'!$C$27,'Priority Ratings'!$B$27,"No Rating"))))))) -> 5 | J12: 0.1063829787 | K12: 100%: Fully comply with requirement 50%: Partially comply will require development/ customisation 0%: No compliance | M12: 0
A13: 5 | B13: Meeting the Scope of Work Required | C13: ERI Configuration Management System | D13: Substantiate by providing details of standards that are supported and ensure that these Capabilities are detailed in the proposal | E13: Information Security Confidentiality + Integrity and protection against Cyber Exploit | F13: Data Classification All ICT Projects solutions in Eskom need to indicate a detail Information Classification criteria matrix ( Controlled Disclosure, Confidential, Secret, Top Secret) to be indicated by Business and System owner and need to be visible for PM. Does your System Data align with, National Cyber Security Policy Framework as well as Critical Infrastructure Protection Act requirements to Secure data/information againts Cyber Exploitation? | H13: Very important | I13: =IF(H13='Priority Ratings'!$C$21,'Priority Ratings'!$B$21,IF(H13='Priority Ratings'!$C$22,'Priority Ratings'!$B$22,IF(H13='Priority Ratings'!$C$23,'Priority Ratings'!$B$23,IF(H13='Priority Ratings'!$C$24,'Priority Ratings'!$B$24,IF(H13='Priority Ratings'!$C$25,'Priority Ratings'!$B$25,IF(H13='Priority Ratings'!$C$26,'Priority Ratings'!$B$26,IF(H13='Priority Ratings'!$C$27,'Priority Ratings'!$B$27,"No Rating"))))))) -> 4 | J13: 0.08510638298 | K13: 100%: Fully comply with requirement 50%: Partially comply will require development/ customisation 0%: No compliance | M13: 0
A14: 6 | B14: Meeting the Scope of Work Required | C14: ERI Configuration Management System | D14: Substantiate by providing details of standards that are supported and ensure that these Capabilities are detailed in the proposal | E14: Information Security | F14: Data Storage For Cloud-based Off-Premise Solutions, do the respondents or via joint venture partner have the hosting datacenter within South African boarders? | H14: Critical | I14: =IF(H14='Priority Ratings'!$C$21,'Priority Ratings'!$B$21,IF(H14='Priority Ratings'!$C$22,'Priority Ratings'!$B$22,IF(H14='Priority Ratings'!$C$23,'Priority Ratings'!$B$23,IF(H14='Priority Ratings'!$C$24,'Priority Ratings'!$B$24,IF(H14='Priority Ratings'!$C$25,'Priority Ratings'!$B$25,IF(H14='Priority Ratings'!$C$26,'Priority Ratings'!$B$26,IF(H14='Priority Ratings'!$C$27,'Priority Ratings'!$B$27,"No Rating"))))))) -> 5 | J14: 0.1063829787 | K14: 100%: Fully comply with requirement 50%: Partially comply will require development/ customisation 0%: No compliance | M14: 0
A15: 7 | B15: Meeting the Scope of Work Required | C15: ERI Configuration Management System | D15: Substantiate by providing details of standards that are supported and ensure that these Capabilities are detailed in the proposal | E15: Information Security | F15: SIEM Integration Does your Proposed Solution provide a Feed for SIEM Integration using Standard Technologies? i.e. Syslog, Windows Events, etc. | H15: Very important | I15: =IF(H15='Priority Ratings'!$C$21,'Priority Ratings'!$B$21,IF(H15='Priority Ratings'!$C$22,'Priority Ratings'!$B$22,IF(H15='Priority Ratings'!$C$23,'Priority Ratings'!$B$23,IF(H15='Priority Ratings'!$C$24,'Priority Ratings'!$B$24,IF(H15='Priority Ratings'!$C$25,'Priority Ratings'!$B$25,IF(H15='Priority Ratings'!$C$26,'Priority Ratings'!$B$26,IF(H15='Priority Ratings'!$C$27,'Priority Ratings'!$B$27,"No Rating"))))))) -> 4 | J15: 0.08510638298 | K15: 100%: Fully comply with requirement 50%: Partially comply will require development/ customisation 0%: No compliance | M15: 0
A16: 8 | B16: Meeting the Scope of Work Required | C16: ERI Configuration Management System | D16: Cloud Data Standard Baseline security Control Access to Cloud environment – access control to Cloud environments, as well as the ingress and egress movement of data, will be done using existing mechanisms and other complementary Cloud-specific mechanisms. Do not enable direct remote access to Cloud VMs from the Internet, but enforce the use of VPNs. | E16: DATA SECURITY: Access & Connectivity | F16: Can the solution be accessed via a Public: Web Portal | H16: Very important | I16: =IF(H16='Priority Ratings'!$C$21,'Priority Ratings'!$B$21,IF(H16='Priority Ratings'!$C$22,'Priority Ratings'!$B$22,IF(H16='Priority Ratings'!$C$23,'Priority Ratings'!$B$23,IF(H16='Priority Ratings'!$C$24,'Priority Ratings'!$B$24,IF(H16='Priority Ratings'!$C$25,'Priority Ratings'!$B$25,IF(H16='Priority Ratings'!$C$26,'Priority Ratings'!$B$26,IF(H16='Priority Ratings'!$C$27,'Priority Ratings'!$B$27,"No Rating"))))))) -> 4 | J16: 0.08510638298 | K16: 100%: Fully comply with requirement 50%: Partially comply will require development/ customisation 0%: No compliance | M16: 0
A17: 9 | B17: Meeting the Scope of Work Required | C17: ERI Configuration Management System | D17: What type of channel security does Source Application support, i.e. One-Way or Two-Way certificate (SSL/TLS) to secure the channel? | E17: DATA SECURITY: Access & Connectivity - Integration | F17: Provide the security capability | H17: Very important | I17: =IF(H17='Priority Ratings'!$C$21,'Priority Ratings'!$B$21,IF(H17='Priority Ratings'!$C$22,'Priority Ratings'!$B$22,IF(H17='Priority Ratings'!$C$23,'Priority Ratings'!$B$23,IF(H17='Priority Ratings'!$C$24,'Priority Ratings'!$B$24,IF(H17='Priority Ratings'!$C$25,'Priority Ratings'!$B$25,IF(H17='Priority Ratings'!$C$26,'Priority Ratings'!$B$26,IF(H17='Priority Ratings'!$C$27,'Priority Ratings'!$B$27,"No Rating"))))))) -> 4 | J17: 0.08510638298 | K17: 100%:Source Supports a secure channel of communication 0%: Source supports no secure channel of communicaiton | M17: 0
A18: 10 | B18: Meeting the Scope of Work Required | C18: ERI Configuration Management System | D18: What type of authentication security does Source support, i.e. Basic Authentication for Web Services, Database or SFTP? | E18: DATA SECURITY: Access & Connectivity - Integration | F18: Provide the Authentication capability | H18: Very important | I18: =IF(H18='Priority Ratings'!$C$21,'Priority Ratings'!$B$21,IF(H18='Priority Ratings'!$C$22,'Priority Ratings'!$B$22,IF(H18='Priority Ratings'!$C$23,'Priority Ratings'!$B$23,IF(H18='Priority Ratings'!$C$24,'Priority Ratings'!$B$24,IF(H18='Priority Ratings'!$C$25,'Priority Ratings'!$B$25,IF(H18='Priority Ratings'!$C$26,'Priority Ratings'!$B$26,IF(H18='Priority Ratings'!$C$27,'Priority Ratings'!$B$27,"No Rating"))))))) -> 4 | J18: 0.08510638298 | K18: 100%:Source can apply Basic Authentication for Web Services, Database and SFTP 50%: The Source can only apply Basic Suthentication on Database or SFTP 0%: Neither | M18: 0
A19: 11 | B19: Meeting the Scope of Work Required | C19: ERI Configuration Management System | D19: Cloud Data Standard Baseline security Control Access to Cloud environment – access control to Cloud environments, as well as the ingress and egress movement of data, will be done using existing mechanisms and other complementary Cloud-specific mechanisms. Do not enable direct remote access to Cloud VMs from the Internet, but enforce the use of VPNs. | E19: DATA SECURITY: Access & Connectivity | F19: Can the solution be accessed via a Public: Mobile App | H19: Very important | I19: =IF(H19='Priority Ratings'!$C$21,'Priority Ratings'!$B$21,IF(H19='Priority Ratings'!$C$22,'Priority Ratings'!$B$22,IF(H19='Priority Ratings'!$C$23,'Priority Ratings'!$B$23,IF(H19='Priority Ratings'!$C$24,'Priority Ratings'!$B$24,IF(H19='Priority Ratings'!$C$25,'Priority Ratings'!$B$25,IF(H19='Priority Ratings'!$C$26,'Priority Ratings'!$B$26,IF(H19='Priority Ratings'!$C$27,'Priority Ratings'!$B$27,"No Rating"))))))) -> 4 | J19: 0.08510638298 | K19: 100%: Fully comply with requirement 50%: Partially comply will require development/ customisation 0%: No compliance | M19: 0
G21: Totals | I21: =SUM(I9:I19) -> 47 | J21: =SUM(J9:J19) -> 1 | M21: =SUM(M9:M19) -> 0

Sheet Integration and Testing
A1: =Technical!A1 -> ERI Configuration Management System
A2: CORP xxxx Tender
A3: Tenderer:
A4: Evaluated by:
A6: Evaluation Criteria
I7: Weight (agreed by evaluation team members) | K7: Score (determined by each evaluation team member during evaluation. Will be averaged for final scores)
A8: ID | B8: Type | C8: Criterion | D8: Solution | E8: Functional Requirement | F8: Requirement description | G8: Vendor Comments | H8: Priority Description | I8: Priority | J8: Weighted Question | K8: Scoring | L8: Answer (0,50,100%) | M8: Weighted Answer | N8: Internal Comment
A9: 1 | B9: Meeting the Scope of Work Required | C9: Integration to Microsoft Azure | D9: ERI Configuration Management System | E9: Integration | F9: Microsoft Azure will be used authentication of users to gain access to the system. | H9: Show stopper | I9: =IF(H9='Priority Ratings'!$C$21,'Priority Ratings'!$B$21,IF(H9='Priority Ratings'!$C$22,'Priority Ratings'!$B$22,IF(H9='Priority Ratings'!$C$23,'Priority Ratings'!$B$23,IF(H9='Priority Ratings'!$C$24,'Priority Ratings'!$B$24,IF(H9='Priority Ratings'!$C$25,'Priority Ratings'!$B$25,IF(H9='Priority Ratings'!$C$26,'Priority Ratings'!$B$26,IF(H9='Priority Ratings'!$C$27,'Priority Ratings'!$B$27,"No Rating"))))))) -> 6 | J9: =I9/I$26 -> 0.08219178082 | K9: 100%: Fully comply with requirement 50%: Partially comply will require development/ customisation 0%: No compliance | M9: =J9*L9 -> 0
A10: 2 | B10: Meeting the Scope of Work Required | C10: Integration to Microsoft Exchange Online | D10: ERI Configuration Management System | E10: Integration | F10: Email notifications for escalations and approvals | H10: Important | I10: =IF(H10='Priority Ratings'!$C$21,'Priority Ratings'!$B$21,IF(H10='Priority Ratings'!$C$22,'Priority Ratings'!$B$22,IF(H10='Priority Ratings'!$C$23,'Priority Ratings'!$B$23,IF(H10='Priority Ratings'!$C$24,'Priority Ratings'!$B$24,IF(H10='Priority Ratings'!$C$25,'Priority Ratings'!$B$25,IF(H10='Priority Ratings'!$C$26,'Priority Ratings'!$B$26,IF(H10='Priority Ratings'!$C$27,'Priority Ratings'!$B$27,"No Rating"))))))) -> 3 | J10: 0.04109589041 | K10: 100%: Good Experience with certification 50%: Some exeperience without certification 0%: No experience, No certification | M10: =J10*L10 -> 0
A11: 3 | B11: Meeting the Scope of Work Required | C11: Previous involvement in the end to end testing of a similar system and methodologies used) | D11: ERI Configuration Management System | E11: Testing | F11: Provide names of the customer and brief description of your responsiblities with regards to testing | H11: Very important | I11: =IF(H11='Priority Ratings'!$C$21,'Priority Ratings'!$B$21,IF(H11='Priority Ratings'!$C$22,'Priority Ratings'!$B$22,IF(H11='Priority Ratings'!$C$23,'Priority Ratings'!$B$23,IF(H11='Priority Ratings'!$C$24,'Priority Ratings'!$B$24,IF(H11='Priority Ratings'!$C$25,'Priority Ratings'!$B$25,IF(H11='Priority Ratings'!$C$26,'Priority Ratings'!$B$26,IF(H11='Priority Ratings'!$C$27,'Priority Ratings'!$B$27,"No Rating"))))))) -> 4 | J11: 0.05479452055 | K11: 100%: Fully comply with requirement 50%: Partially comply(Names without description of the services) 0%: No compliance | M11: 0
A12: 4 | B12: Meeting the Scope of Work Required | C12: Resource model. It is a requirement that sufficient dedicated testers are allocated the project, independent of the development team | D12: ERI Configuration Management System | E12: Testing | F12: The following experienced roles must be filled a:Test Manger, Test analyst ,Tester and Perfomance tester. CV's must be submitted indicating the relevant experience | H12: Very important | I12: =IF(H12='Priority Ratings'!$C$21,'Priority Ratings'!$B$21,IF(H12='Priority Ratings'!$C$22,'Priority Ratings'!$B$22,IF(H12='Priority Ratings'!$C$23,'Priority Ratings'!$B$23,IF(H12='Priority Ratings'!$C$24,'Priority Ratings'!$B$24,IF(H12='Priority Ratings'!$C$25,'Priority Ratings'!$B$25,IF(H12='Priority Ratings'!$C$26,'Priority Ratings'!$B$26,IF(H12='Priority Ratings'!$C$27,'Priority Ratings'!$B$27,"No Rating"))))))) -> 4 | J12: 0.05479452055 | K12: 100%:Experience with all roles 50%: Exeperience with 2 roles 0%: No experience | M12: 0
A13: 5 | B13: Meeting the Scope of Work Required | C13: Resource Experience with Eskoms Testing tools | D13: ERI Configuration Management System | E13: Testing | F13: Must be HP ALM, UFT and Load Runner | H13: Very important | I13: =IF(H13='Priority Ratings'!$C$21,'Priority Ratings'!$B$21,IF(H13='Priority Ratings'!$C$22,'Priority Ratings'!$B$22,IF(H13='Priority Ratings'!$C$23,'Priority Ratings'!$B$23,IF(H13='Priority Ratings'!$C$24,'Priority Ratings'!$B$24,IF(H13='Priority Ratings'!$C$25,'Priority Ratings'!$B$25,IF(H13='Priority Ratings'!$C$26,'Priority Ratings'!$B$26,IF(H13='Priority Ratings'!$C$27,'Priority Ratings'!$B$27,"No Rating"))))))) -> 4 | J13: 0.05479452055 | K13: 100%: Experience with both tools 50%: Exeperience with 1 tool 0%: No experience | M13: 0
A14: 6 | B14: Meeting the Scope of Work Required | C14: Your testing approach specific to the project with refence to a methodology | D14: ERI Configuration Management System | E14: Testing | F14: Tenderer must provide approach | H14: Very important | I14: =IF(H14='Priority Ratings'!$C$21,'Priority Ratings'!$B$21,IF(H14='Priority Ratings'!$C$22,'Priority Ratings'!$B$22,IF(H14='Priority Ratings'!$C$23,'Priority Ratings'!$B$23,IF(H14='Priority Ratings'!$C$24,'Priority Ratings'!$B$24,IF(H14='Priority Ratings'!$C$25,'Priority Ratings'!$B$25,IF(H14='Priority Ratings'!$C$26,'Priority Ratings'!$B$26,IF(H14='Priority Ratings'!$C$27,'Priority Ratings'!$B$27,"No Rating"))))))) -> 4 | J14: 0.05479452055 | K14: 100%: Complete approach provided with reference to a methodology 50%: Approach provided with no reference to a methodology 0%: No approach provided | M14: 0
A15: 7 | B15: Meeting the Scope of Work Required | C15: Tenderer's proposed testing resources must have the required ISTQB(International Software Testing Qualifications Board) qualifications acrredited by SATQB(Southern African Software Testing Qualifications Board). | D15: ERI Configuration Management System | E15: Testing | F15: CV's together with respective copies of acquired certificates. | H15: Very important | I15: =IF(H15='Priority Ratings'!$C$21,'Priority Ratings'!$B$21,IF(H15='Priority Ratings'!$C$22,'Priority Ratings'!$B$22,IF(H15='Priority Ratings'!$C$23,'Priority Ratings'!$B$23,IF(H15='Priority Ratings'!$C$24,'Priority Ratings'!$B$24,IF(H15='Priority Ratings'!$C$25,'Priority Ratings'!$B$25,IF(H15='Priority Ratings'!$C$26,'Priority Ratings'!$B$26,IF(H15='Priority Ratings'!$C$27,'Priority Ratings'!$B$27,"No Rating"))))))) -> 4 | J15: 0.05479452055 | K15: 100%: All roles with certifications 50%: 2 Roles with certifications 0%: No certifications | M15: 0
A16: 8 | B16: Meeting the Scope of Work Required | C16: Previous experience in implementation of Oracle Fusion Integration solutions in a enterprise | D16: ERI Configuration Management System | E16: Integration | F16: Please provide reference projects & sites and pattern your previous experience covers | H16: Show stopper | I16: =IF(H16='Priority Ratings'!$C$21,'Priority Ratings'!$B$21,IF(H16='Priority Ratings'!$C$22,'Priority Ratings'!$B$22,IF(H16='Priority Ratings'!$C$23,'Priority Ratings'!$B$23,IF(H16='Priority Ratings'!$C$24,'Priority Ratings'!$B$24,IF(H16='Priority Ratings'!$C$25,'Priority Ratings'!$B$25,IF(H16='Priority Ratings'!$C$26,'Priority Ratings'!$B$26,IF(H16='Priority Ratings'!$C$27,'Priority Ratings'!$B$27,"No Rating"))))))) -> 6 | J16: 0.08219178082 | K16: 100%: Good Experience in Data Power Implementation 0%: No experience in Data Power Implementation | M16: 0
A17: 9 | B17: Meeting the Scope of Work Required | C17: Previous experience in implementation of Datapower integration solutions in a enterprise | D17: ERI Configuration Management System | E17: Integration | F17: Please provide reference projects & sites and pattern your previous experience covers | H17: Show stopper | I17: =IF(H17='Priority Ratings'!$C$21,'Priority Ratings'!$B$21,IF(H17='Priority Ratings'!$C$22,'Priority Ratings'!$B$22,IF(H17='Priority Ratings'!$C$23,'Priority Ratings'!$B$23,IF(H17='Priority Ratings'!$C$24,'Priority Ratings'!$B$24,IF(H17='Priority Ratings'!$C$25,'Priority Ratings'!$B$25,IF(H17='Priority Ratings'!$C$26,'Priority Ratings'!$B$26,IF(H17='Priority Ratings'!$C$27,'Priority Ratings'!$B$27,"No Rating"))))))) -> 6 | J17: 0.08219178082 | K17: 100%: Good Experience with certification 50%: Certification without experience 0%: No experience, No certification | M17: 0
A18: 10 | B18: Meeting the Scope of Work Required | C18: Team has the required certifications for Oracle Fusion 12C | D18: ERI Configuration Management System | E18: Integration | F18: (Provide Certificate) acquired through permanent resources or partnership. Capability of at least 1 senior certified resource must have working experience in the technology? | H18: Very important | I18: =IF(H18='Priority Ratings'!$C$21,'Priority Ratings'!$B$21,IF(H18='Priority Ratings'!$C$22,'Priority Ratings'!$B$22,IF(H18='Priority Ratings'!$C$23,'Priority Ratings'!$B$23,IF(H18='Priority Ratings'!$C$24,'Priority Ratings'!$B$24,IF(H18='Priority Ratings'!$C$25,'Priority Ratings'!$B$25,IF(H18='Priority Ratings'!$C$26,'Priority Ratings'!$B$26,IF(H18='Priority Ratings'!$C$27,'Priority Ratings'!$B$27,"No Rating"))))))) -> 4 | J18: 0.05479452055 | K18: 100%: Good Experience with certification 50%: Certification without experience 0%: No experience, No certification | M18: 0
A19: 11 | B19: Meeting the Scope of Work Required | C19: Team has the required certifications IBM Data Power | D19: ERI Configuration Management System | E19: Integration | F19: (Provide Certificate) acquired through permanent resources or partnership. Capability of at least 1 senior certified resource must have working experience in the technology? | H19: Very important | I19: =IF(H19='Priority Ratings'!$C$21,'Priority Ratings'!$B$21,IF(H19='Priority Ratings'!$C$22,'Priority Ratings'!$B$22,IF(H19='Priority Ratings'!$C$23,'Priority Ratings'!$B$23,IF(H19='Priority Ratings'!$C$24,'Priority Ratings'!$B$24,IF(H19='Priority Ratings'!$C$25,'Priority Ratings'!$B$25,IF(H19='Priority Ratings'!$C$26,'Priority Ratings'!$B$26,IF(H19='Priority Ratings'!$C$27,'Priority Ratings'!$B$27,"No Rating"))))))) -> 4 | J19: 0.05479452055 | K19: 100%: Experience in analysis, design, development, testing and deployment of Oracle Fusion and Data Power 50%: Experience in analysis, design, development, testing and deployment of Oracle Fusion or Data Power 0%: No experience | M19: 0
A20: 12 | B20: Meeting the Scope of Work Required | C20: Previous experence in carrying out analysis, design, development, testing and deployment of Oracle Fusion and Datapower integration services | D20: ERI Configuration Management System | E20: Integration | F20: Provide proof that you have implemented a solution where the following items were delivered: analysis, design, develop, test and deploy integration solutions. Provide references | H20: Show stopper | I20: =IF(H20='Priority Ratings'!$C$21,'Priority Ratings'!$B$21,IF(H20='Priority Ratings'!$C$22,'Priority Ratings'!$B$22,IF(H20='Priority Ratings'!$C$23,'Priority Ratings'!$B$23,IF(H20='Priority Ratings'!$C$24,'Priority Ratings'!$B$24,IF(H20='Priority Ratings'!$C$25,'Priority Ratings'!$B$25,IF(H20='Priority Ratings'!$C$26,'Priority Ratings'!$B$26,IF(H20='Priority Ratings'!$C$27,'Priority Ratings'!$B$27,"No Rating"))))))) -> 6 | J20: 0.08219178082 | K20: 100%: Experience in analysis, design, development, testing and deployment of Oracle Fusion and Data Power 50%: Experience in analysis, design, development, testing and deployment of Oracle Fusion or Data Power 0%: No experience | M20: 0
A21: 13 | B21: Meeting the Scope of Work Required | C21: Previous experience in implementation of Oracle Fusion and DataPower integration solutions at enterprise level is required. Please provide references on experience by the tenderer for both technologies. | D21: ERI Configuration Management System | E21: Integration | F21: Provide name(s) of the companies where the solution was implemented together with contact persons & details. | H21: Show stopper | I21: =IF(H21='Priority Ratings'!$C$21,'Priority Ratings'!$B$21,IF(H21='Priority Ratings'!$C$22,'Priority Ratings'!$B$22,IF(H21='Priority Ratings'!$C$23,'Priority Ratings'!$B$23,IF(H21='Priority Ratings'!$C$24,'Priority Ratings'!$B$24,IF(H21='Priority Ratings'!$C$25,'Priority Ratings'!$B$25,IF(H21='Priority Ratings'!$C$26,'Priority Ratings'!$B$26,IF(H21='Priority Ratings'!$C$27,'Priority Ratings'!$B$27,"No Rating"))))))) -> 6 | J21: 0.08219178082 | K21: 100%: Good Experience in both Technologies 50%: Experience in one of the Technologies 0%: No experience | M21: 0
A22: 14 | B22: Meeting the Scope of Work Required | C22: What is the structure of the message? Is it a proprietary file, is it in a Database? If this information is PUSHED by Source, can the Source send to Integration a Common Information Message (CIM) or they can only send a proprietory message structure? (Proprietory – Applications own business service message structure) | D22: ERI Configuration Management System | E22: Integration | F22: Provide the capability of the Application | H22: Very important | I22: =IF(H22='Priority Ratings'!$C$21,'Priority Ratings'!$B$21,IF(H22='Priority Ratings'!$C$22,'Priority Ratings'!$B$22,IF(H22='Priority Ratings'!$C$23,'Priority Ratings'!$B$23,IF(H22='Priority Ratings'!$C$24,'Priority Ratings'!$B$24,IF(H22='Priority Ratings'!$C$25,'Priority Ratings'!$B$25,IF(H22='Priority Ratings'!$C$26,'Priority Ratings'!$B$26,IF(H22='Priority Ratings'!$C$27,'Priority Ratings'!$B$27,"No Rating"))))))) -> 4 | J22: =I22/I$26 -> 0.05479452055 | K22: 100%:Source can send a Common information message (CIM) structure 50%: The Source can send only a proprietary message structure 0%: Neither | M22: 0
A23: 15 | B23: Meeting the Scope of Work Required | C23: Can Integration reply to the Source Application with a full service response (pre-defined message structure) in case Source Application is invoking an Integration Web Service or the Source can only handle HTTP/SOAP responses? | D23: ERI Configuration Management System | E23: Integration | F23: Provide the Basic Authentication capability | H23: Very important | I23: =IF(H23='Priority Ratings'!$C$21,'Priority Ratings'!$B$21,IF(H23='Priority Ratings'!$C$22,'Priority Ratings'!$B$22,IF(H23='Priority Ratings'!$C$23,'Priority Ratings'!$B$23,IF(H23='Priority Ratings'!$C$24,'Priority Ratings'!$B$24,IF(H23='Priority Ratings'!$C$25,'Priority Ratings'!$B$25,IF(H23='Priority Ratings'!$C$26,'Priority Ratings'!$B$26,IF(H23='Priority Ratings'!$C$27,'Priority Ratings'!$B$27,"No Rating"))))))) -> 4 | J23: 0.05479452055 | K23: 100%:Source can accept full service response 50%: The Source can accept HTTP/SOAP response 0%: Neither | M23: 0
A24: 16 | B24: Meeting the Scope of Work Required | C24: Is the Source Application capable of retrying a message if there are connection errors in Integration or Target and they have received a service response or HTTP response? Source Application can distinguish between Technical and Business error, and handle each one in a seperate manor IF Database, Have a separate column in the table where errors can be written, and column for a flag (Successful, technical error, business error) | D24: ERI Configuration Management System | E24: Integration | F24: Provide The Retry capability | H24: Very important | I24: =IF(H24='Priority Ratings'!$C$21,'Priority Ratings'!$B$21,IF(H24='Priority Ratings'!$C$22,'Priority Ratings'!$B$22,IF(H24='Priority Ratings'!$C$23,'Priority Ratings'!$B$23,IF(H24='Priority Ratings'!$C$24,'Priority Ratings'!$B$24,IF(H24='Priority Ratings'!$C$25,'Priority Ratings'!$B$25,IF(H24='Priority Ratings'!$C$26,'Priority Ratings'!$B$26,IF(H24='Priority Ratings'!$C$27,'Priority Ratings'!$B$27,"No Rating"))))))) -> 4 | J24: 0.05479452055 | K24: 100%:Source can handles Technical and Business error seperately and can cater for separate columns in the Database for errors and a flag 50%: The Source handles Technical and Business errors in one manor or can only cater for the Database flag or comments field 0%: The Source cannot cater for any re-tries | M24: 0
G26: Totals | I26: =SUM(I9:I24) -> 73 | J26: =SUM(J9:J24) -> 1 | M26: =SUM(M9:M24) -> 0

Sheet Cloud
A1: ERI Configuration Management System
A2: CORP xxxx Tender
A3: Tenderer:
A4: Evaluated by:
A6: Evaluation Criteria
I7: Weight (agreed by evaluation team members) | K7: Score (determined by each evaluation team member during evaluation. Will be averaged for final scores)
A8: ID | B8: Type | C8: Solution | D8: Criterion | E8: Functional Requirement | F8: Requirement description | G8: Vendor Comments | H8: Priority Description | I8: Priority | J8: Weighted Question | K8: Scoring | L8: Answer (0,50,100%) | M8: Weighted Answer | N8: Internal Comment
A9: 1 | B9: Meeting the Scope of Work Required | C9: ERI Configuration Management System | D9: Cyber Attack | E9: SECURITY, CONFIDENTIALITY AND PRIVACY | F9: How will the vendor ensure that ERI's Data is protected from Cyber attacks? | H9: Show stopper | I9: =IF(H9='Priority Ratings'!$C$21,'Priority Ratings'!$B$21,IF(H9='Priority Ratings'!$C$22,'Priority Ratings'!$B$22,IF(H9='Priority Ratings'!$C$23,'Priority Ratings'!$B$23,IF(H9='Priority Ratings'!$C$24,'Priority Ratings'!$B$24,IF(H9='Priority Ratings'!$C$25,'Priority Ratings'!$B$25,IF(H9='Priority Ratings'!$C$26,'Priority Ratings'!$B$26,IF(H9='Priority Ratings'!$C$27,'Priority Ratings'!$B$27,"No Rating"))))))) -> 6 | J9: =I9/I$37 -> 0.05172413793 | K9: 100%: Fully comply with requirement 50%: Partially comply will require development/ customisation 0%: No compliance | M9: =J9*L9 -> 0
A10: 2 | B10: Meeting the Scope of Work Required | C10: ERI Configuration Management System | D10: System Availability | E10: AVAILABILITY, RETRIEVAL AND USE | F10: The tenderer's Cloud hosting data centre must be within the borders of South Africa. | H10: Show stopper | I10: =IF(H10='Priority Ratings'!$C$21,'Priority Ratings'!$B$21,IF(H10='Priority Ratings'!$C$22,'Priority Ratings'!$B$22,IF(H10='Priority Ratings'!$C$23,'Priority Ratings'!$B$23,IF(H10='Priority Ratings'!$C$24,'Priority Ratings'!$B$24,IF(H10='Priority Ratings'!$C$25,'Priority Ratings'!$B$25,IF(H10='Priority Ratings'!$C$26,'Priority Ratings'!$B$26,IF(H10='Priority Ratings'!$C$27,'Priority Ratings'!$B$27,"No Rating"))))))) -> 6 | J10: =I10/I$37 -> 0.05172413793 | K10: 100%: Fully comply with requirement 50%: Partially comply will require development/ customisation 0%: No compliance | M10: =J10*L10 -> 0
A11: 3 | B11: Meeting the Scope of Work Required | C11: ERI Configuration Management System | D11: Support | E11: AVAILABILITY, RETRIEVAL AND USE | F11: Clear and concise SLA to be put in place | H11: Very important | I11: =IF(H11='Priority Ratings'!$C$21,'Priority Ratings'!$B$21,IF(H11='Priority Ratings'!$C$22,'Priority Ratings'!$B$22,IF(H11='Priority Ratings'!$C$23,'Priority Ratings'!$B$23,IF(H11='Priority Ratings'!$C$24,'Priority Ratings'!$B$24,IF(H11='Priority Ratings'!$C$25,'Priority Ratings'!$B$25,IF(H11='Priority Ratings'!$C$26,'Priority Ratings'!$B$26,IF(H11='Priority Ratings'!$C$27,'Priority Ratings'!$B$27,"No Rating"))))))) -> 4 | J11: 0.03448275862 | K11: 100%: Fully comply with requirement 50%: Partially comply will require development/ customisation 0%: No compliance | M11: 0
A12: 4 | B12: Meeting the Scope of Work Required | C12: ERI Configuration Management System | D12: Loss, Leakage or Unavailability of data | E12: AVAILABILITY, RETRIEVAL AND USE | F12: Ensure encryption of data in transit and at rest | H12: Critical | I12: =IF(H12='Priority Ratings'!$C$21,'Priority Ratings'!$B$21,IF(H12='Priority Ratings'!$C$22,'Priority Ratings'!$B$22,IF(H12='Priority Ratings'!$C$23,'Priority Ratings'!$B$23,IF(H12='Priority Ratings'!$C$24,'Priority Ratings'!$B$24,IF(H12='Priority Ratings'!$C$25,'Priority Ratings'!$B$25,IF(H12='Priority Ratings'!$C$26,'Priority Ratings'!$B$26,IF(H12='Priority Ratings'!$C$27,'Priority Ratings'!$B$27,"No Rating"))))))) -> 5 | J12: 0.04310344828 | K12: 100%: Fully comply with requirement 50%: Partially comply will require development/ customisation 0%: No compliance | M12: 0
A13: 5 | B13: Meeting the Scope of Work Required | C13: ERI Configuration Management System | D13: System Availability | E13: AVAILABILITY, RETRIEVAL AND USE | F13: Ensure redundancy at vendor site | H13: Critical | I13: =IF(H13='Priority Ratings'!$C$21,'Priority Ratings'!$B$21,IF(H13='Priority Ratings'!$C$22,'Priority Ratings'!$B$22,IF(H13='Priority Ratings'!$C$23,'Priority Ratings'!$B$23,IF(H13='Priority Ratings'!$C$24,'Priority Ratings'!$B$24,IF(H13='Priority Ratings'!$C$25,'Priority Ratings'!$B$25,IF(H13='Priority Ratings'!$C$26,'Priority Ratings'!$B$26,IF(H13='Priority Ratings'!$C$27,'Priority Ratings'!$B$27,"No Rating"))))))) -> 5 | J13: 0.04310344828 | K13: 100%: Fully comply with requirement 50%: Partially comply will require development/ customisation 0%: No compliance | M13: 0
A14: 6 | B14: Meeting the Scope of Work Required | C14: ERI Configuration Management System | D14: Storage and Archiving | E14: DATA STORAGE AND PRESERVATION | F14: Is this covering data on their cloud/site. Will ERI have the right level of access to data. Where is the data stored. Also storage and archiving. Including NERSA / Legal requirements. | H14: Very important | I14: =IF(H14='Priority Ratings'!$C$21,'Priority Ratings'!$B$21,IF(H14='Priority Ratings'!$C$22,'Priority Ratings'!$B$22,IF(H14='Priority Ratings'!$C$23,'Priority Ratings'!$B$23,IF(H14='Priority Ratings'!$C$24,'Priority Ratings'!$B$24,IF(H14='Priority Ratings'!$C$25,'Priority Ratings'!$B$25,IF(H14='Priority Ratings'!$C$26,'Priority Ratings'!$B$26,IF(H14='Priority Ratings'!$C$27,'Priority Ratings'!$B$27,"No Rating"))))))) -> 4 | J14: 0.03448275862 | K14: 100%: Fully comply with requirement 50%: Partially comply will require development/ customisation 0%: No compliance | M14: 0
A15: 7 | B15: Meeting the Scope of Work Required | C15: ERI Configuration Management System | D15: Data Recovery | E15: AVAILABILITY, RETRIEVAL AND USE | F15: Provide details of backups. How long is it kept. . Process for destroying data. Is ERI clearly informed about the procedure and conditions for the destruction of ERI data? | H15: Very important | I15: =IF(H15='Priority Ratings'!$C$21,'Priority Ratings'!$B$21,IF(H15='Priority Ratings'!$C$22,'Priority Ratings'!$B$22,IF(H15='Priority Ratings'!$C$23,'Priority Ratings'!$B$23,IF(H15='Priority Ratings'!$C$24,'Priority Ratings'!$B$24,IF(H15='Priority Ratings'!$C$25,'Priority Ratings'!$B$25,IF(H15='Priority Ratings'!$C$26,'Priority Ratings'!$B$26,IF(H15='Priority Ratings'!$C$27,'Priority Ratings'!$B$27,"No Rating"))))))) -> 4 | J15: 0.03448275862 | K15: 100%: Fully comply with requirement 50%: Partially comply will require development/ customisation 0%: No compliance | M15: 0
A16: 8 | B16: Meeting the Scope of Work Required | C16: ERI Configuration Management System | D16: Security Logs | E16: SECURITY, CONFIDENTIALITY AND PRIVACY | F16: Does the system provide and give ERI access to audit trails, metadata and/or access logs to demonstrate security measures? | H16: Show stopper | I16: =IF(H16='Priority Ratings'!$C$21,'Priority Ratings'!$B$21,IF(H16='Priority Ratings'!$C$22,'Priority Ratings'!$B$22,IF(H16='Priority Ratings'!$C$23,'Priority Ratings'!$B$23,IF(H16='Priority Ratings'!$C$24,'Priority Ratings'!$B$24,IF(H16='Priority Ratings'!$C$25,'Priority Ratings'!$B$25,IF(H16='Priority Ratings'!$C$26,'Priority Ratings'!$B$26,IF(H16='Priority Ratings'!$C$27,'Priority Ratings'!$B$27,"No Rating"))))))) -> 6 | J16: 0.05172413793 | K16: 100%: Fully comply with requirement 50%: Partially comply will require development/ customisation 0%: No compliance | M16: 0
A17: 9 | B17: Meeting the Scope of Work Required | C17: ERI Configuration Management System | D17: Data ownership and use Compliance document | E17: DATA OWNERSHIP AND USE | F17: Please confirm that ESKOM retains ownership of the data that ESKOM stores, transmits, and/or creates with the cloud service. | H17: Very important | I17: =IF(H17='Priority Ratings'!$C$21,'Priority Ratings'!$B$21,IF(H17='Priority Ratings'!$C$22,'Priority Ratings'!$B$22,IF(H17='Priority Ratings'!$C$23,'Priority Ratings'!$B$23,IF(H17='Priority Ratings'!$C$24,'Priority Ratings'!$B$24,IF(H17='Priority Ratings'!$C$25,'Priority Ratings'!$B$25,IF(H17='Priority Ratings'!$C$26,'Priority Ratings'!$B$26,IF(H17='Priority Ratings'!$C$27,'Priority Ratings'!$B$27,"No Rating"))))))) -> 4 | J17: 0.03448275862 | K17: 100%: Fully comply with requirement 0%: No compliance | M17: 0
A18: 10 | B18: Meeting the Scope of Work Required | C18: ERI Configuration Management System | D18: Data ownership and use Compliance document | E18: DATA OWNERSHIP AND USE | F18: Does the Supplier’s compliance with copyright laws and other applicable intellectual property rights restrict the type of content ESKOM can store with the cloud service? | H18: Very important | I18: =IF(H18='Priority Ratings'!$C$21,'Priority Ratings'!$B$21,IF(H18='Priority Ratings'!$C$22,'Priority Ratings'!$B$22,IF(H18='Priority Ratings'!$C$23,'Priority Ratings'!$B$23,IF(H18='Priority Ratings'!$C$24,'Priority Ratings'!$B$24,IF(H18='Priority Ratings'!$C$25,'Priority Ratings'!$B$25,IF(H18='Priority Ratings'!$C$26,'Priority Ratings'!$B$26,IF(H18='Priority Ratings'!$C$27,'Priority Ratings'!$B$27,"No Rating"))))))) -> 4 | J18: 0.03448275862 | K18: 100%: Fully comply with requirement 0%: No compliance | M18: 0
A19: 11 | B19: Meeting the Scope of Work Required | C19: ERI Configuration Management System | D19: ESKOM requires no exception for metadata. | E19: DATA OWNERSHIP AND USE | F19: Do the Supplier’s terms apply to Eskom generated metadata as well? | H19: Very important | I19: =IF(H19='Priority Ratings'!$C$21,'Priority Ratings'!$B$21,IF(H19='Priority Ratings'!$C$22,'Priority Ratings'!$B$22,IF(H19='Priority Ratings'!$C$23,'Priority Ratings'!$B$23,IF(H19='Priority Ratings'!$C$24,'Priority Ratings'!$B$24,IF(H19='Priority Ratings'!$C$25,'Priority Ratings'!$B$25,IF(H19='Priority Ratings'!$C$26,'Priority Ratings'!$B$26,IF(H19='Priority Ratings'!$C$27,'Priority Ratings'!$B$27,"No Rating"))))))) -> 4 | J19: 0.03448275862 | K19: 100%: Fully comply with requirement 0%: No compliance | M19: 0
A20: 12 | B20: Meeting the Scope of Work Required | C20: ERI Configuration Management System | D20: Metadata ownership | E20: DATA OWNERSHIP AND USE | F20: Does ESKOM gain ownership of metadata generated by the cloud service system during procedures of upload, management, download, and migration? | H20: Very important | I20: =IF(H20='Priority Ratings'!$C$21,'Priority Ratings'!$B$21,IF(H20='Priority Ratings'!$C$22,'Priority Ratings'!$B$22,IF(H20='Priority Ratings'!$C$23,'Priority Ratings'!$B$23,IF(H20='Priority Ratings'!$C$24,'Priority Ratings'!$B$24,IF(H20='Priority Ratings'!$C$25,'Priority Ratings'!$B$25,IF(H20='Priority Ratings'!$C$26,'Priority Ratings'!$B$26,IF(H20='Priority Ratings'!$C$27,'Priority Ratings'!$B$27,"No Rating"))))))) -> 4 | J20: 0.03448275862 | K20: 100%: Fully comply with requirement 0%: No compliance | M20: 0
A21: 13 | B21: Meeting the Scope of Work Required | C21: ERI Configuration Management System | D21: Business continuity | E21: AVAILABILITY, RETRIEVAL AND USE | F21: Supplier will be required to include detailed DR(disaster recovery) and business continuity plans to ensure all the business information is restored fully. | H21: Very important | I21: =IF(H21='Priority Ratings'!$C$21,'Priority Ratings'!$B$21,IF(H21='Priority Ratings'!$C$22,'Priority Ratings'!$B$22,IF(H21='Priority Ratings'!$C$23,'Priority Ratings'!$B$23,IF(H21='Priority Ratings'!$C$24,'Priority Ratings'!$B$24,IF(H21='Priority Ratings'!$C$25,'Priority Ratings'!$B$25,IF(H21='Priority Ratings'!$C$26,'Priority Ratings'!$B$26,IF(H21='Priority Ratings'!$C$27,'Priority Ratings'!$B$27,"No Rating"))))))) -> 4 | J21: 0.03448275862 | K21: 100%: Fully comply with requirement 0%: No compliance | M21: 0
A22: 14 | B22: Meeting the Scope of Work Required | C22: ERI Configuration Management System | D22: Time and cost for restoring ESKOM data | E22: AVAILABILITY, RETRIEVAL AND USE | F22: Are the procedures, time and cost for restoring ESKOM data following a service outage clearly defined? | H22: Very important | I22: =IF(H22='Priority Ratings'!$C$21,'Priority Ratings'!$B$21,IF(H22='Priority Ratings'!$C$22,'Priority Ratings'!$B$22,IF(H22='Priority Ratings'!$C$23,'Priority Ratings'!$B$23,IF(H22='Priority Ratings'!$C$24,'Priority Ratings'!$B$24,IF(H22='Priority Ratings'!$C$25,'Priority Ratings'!$B$25,IF(H22='Priority Ratings'!$C$26,'Priority Ratings'!$B$26,IF(H22='Priority Ratings'!$C$27,'Priority Ratings'!$B$27,"No Rating"))))))) -> 4 | J22: 0.03448275862 | K22: 100%: Fully comply with requirement 0%: No compliance | M22: 0
A23: 15 | B23: Meeting the Scope of Work Required | C23: ERI Configuration Management System | D23: Non-interruptable service | E23: AVAILABILITY, RETRIEVAL AND USE | F23: The Cloud Service Provider to ensure uninterruptable service availability and reliability 24x7 | H23: Very important | I23: =IF(H23='Priority Ratings'!$C$21,'Priority Ratings'!$B$21,IF(H23='Priority Ratings'!$C$22,'Priority Ratings'!$B$22,IF(H23='Priority Ratings'!$C$23,'Priority Ratings'!$B$23,IF(H23='Priority Ratings'!$C$24,'Priority Ratings'!$B$24,IF(H23='Priority Ratings'!$C$25,'Priority Ratings'!$B$25,IF(H23='Priority Ratings'!$C$26,'Priority Ratings'!$B$26,IF(H23='Priority Ratings'!$C$27,'Priority Ratings'!$B$27,"No Rating"))))))) -> 4 | J23: 0.03448275862 | K23: 100%: Fully comply with requirement 0%: No compliance | M23: 0
A24: 16 | B24: Meeting the Scope of Work Required | C24: ERI Configuration Management System | D24: Audit trails and access logs | E24: SECURITY, CONFIDENTIALITY AND PRIVACY | F24: Does the system provide and give Eskom access to audit trails, metadata and/or access logs to demonstrate security measures? | H24: Very important | I24: =IF(H24='Priority Ratings'!$C$21,'Priority Ratings'!$B$21,IF(H24='Priority Ratings'!$C$22,'Priority Ratings'!$B$22,IF(H24='Priority Ratings'!$C$23,'Priority Ratings'!$B$23,IF(H24='Priority Ratings'!$C$24,'Priority Ratings'!$B$24,IF(H24='Priority Ratings'!$C$25,'Priority Ratings'!$B$25,IF(H24='Priority Ratings'!$C$26,'Priority Ratings'!$B$26,IF(H24='Priority Ratings'!$C$27,'Priority Ratings'!$B$27,"No Rating"))))))) -> 4 | J24: 0.03448275862 | K24: 100%: Fully comply with requirement 50%: Partly comply with requirement 0%: No compliance | M24: 0
A25: 17 | B25: Meeting the Scope of Work Required | C25: ERI Configuration Management System | D25: Backup services | E25: DATA STORAGE | F25: Does the Supplier create backups of ESKOM’s data? | H25: Very important | I25: =IF(H25='Priority Ratings'!$C$21,'Priority Ratings'!$B$21,IF(H25='Priority Ratings'!$C$22,'Priority Ratings'!$B$22,IF(H25='Priority Ratings'!$C$23,'Priority Ratings'!$B$23,IF(H25='Priority Ratings'!$C$24,'Priority Ratings'!$B$24,IF(H25='Priority Ratings'!$C$25,'Priority Ratings'!$B$25,IF(H25='Priority Ratings'!$C$26,'Priority Ratings'!$B$26,IF(H25='Priority Ratings'!$C$27,'Priority Ratings'!$B$27,"No Rating"))))))) -> 4 | J25: 0.03448275862 | K25: 100%: Fully comply with requirement 0%: No compliance | M25: 0
A26: 18 | B26: Meeting the Scope of Work Required | C26: ERI Configuration Management System | D26: Backup services | E26: DATA STORAGE | F26: Are there specific service levels around backups? | H26: Very important | I26: =IF(H26='Priority Ratings'!$C$21,'Priority Ratings'!$B$21,IF(H26='Priority Ratings'!$C$22,'Priority Ratings'!$B$22,IF(H26='Priority Ratings'!$C$23,'Priority Ratings'!$B$23,IF(H26='Priority Ratings'!$C$24,'Priority Ratings'!$B$24,IF(H26='Priority Ratings'!$C$25,'Priority Ratings'!$B$25,IF(H26='Priority Ratings'!$C$26,'Priority Ratings'!$B$26,IF(H26='Priority Ratings'!$C$27,'Priority Ratings'!$B$27,"No Rating"))))))) -> 4 | J26: 0.03448275862 | K26: 100%: Fully comply with requirement 0%: No compliance | M26: 0
A27: 19 | B27: Meeting the Scope of Work Required | C27: ERI Configuration Management System | D27: Backup services | E27: DATA STORAGE | F27: Does ESKOM have audit rights to verify that back-ups have been done as contracted? | H27: Very important | I27: =IF(H27='Priority Ratings'!$C$21,'Priority Ratings'!$B$21,IF(H27='Priority Ratings'!$C$22,'Priority Ratings'!$B$22,IF(H27='Priority Ratings'!$C$23,'Priority Ratings'!$B$23,IF(H27='Priority Ratings'!$C$24,'Priority Ratings'!$B$24,IF(H27='Priority Ratings'!$C$25,'Priority Ratings'!$B$25,IF(H27='Priority Ratings'!$C$26,'Priority Ratings'!$B$26,IF(H27='Priority Ratings'!$C$27,'Priority Ratings'!$B$27,"No Rating"))))))) -> 4 | J27: 0.03448275862 | K27: 100%: Fully comply with requirement 0%: No compliance | M27: 0
A28: 20 | B28: Meeting the Scope of Work Required | C28: ERI Configuration Management System | D28: Data recovery | E28: DATA STORAGE | F28: In the event of accidental data deletion, does the Supplier bear responsibility for data recovery? | H28: Very important | I28: =IF(H28='Priority Ratings'!$C$21,'Priority Ratings'!$B$21,IF(H28='Priority Ratings'!$C$22,'Priority Ratings'!$B$22,IF(H28='Priority Ratings'!$C$23,'Priority Ratings'!$B$23,IF(H28='Priority Ratings'!$C$24,'Priority Ratings'!$B$24,IF(H28='Priority Ratings'!$C$25,'Priority Ratings'!$B$25,IF(H28='Priority Ratings'!$C$26,'Priority Ratings'!$B$26,IF(H28='Priority Ratings'!$C$27,'Priority Ratings'!$B$27,"No Rating"))))))) -> 4 | J28: 0.03448275862 | K28: 100%: Fully comply with requirement 0%: No compliance | M28: 0
A29: 21 | B29: Meeting the Scope of Work Required | C29: ERI Configuration Management System | D29: Data integrity | E29: DATA PRESERVATION | F29: Will ESKOM be notified by the Supplier of changes made to ESKOM data due to evolution of the service? | H29: Very important | I29: =IF(H29='Priority Ratings'!$C$21,'Priority Ratings'!$B$21,IF(H29='Priority Ratings'!$C$22,'Priority Ratings'!$B$22,IF(H29='Priority Ratings'!$C$23,'Priority Ratings'!$B$23,IF(H29='Priority Ratings'!$C$24,'Priority Ratings'!$B$24,IF(H29='Priority Ratings'!$C$25,'Priority Ratings'!$B$25,IF(H29='Priority Ratings'!$C$26,'Priority Ratings'!$B$26,IF(H29='Priority Ratings'!$C$27,'Priority Ratings'!$B$27,"No Rating"))))))) -> 4 | J29: 0.03448275862 | K29: 100%: Fully comply with requirement 0%: No compliance | M29: 0
A30: 22 | B30: Meeting the Scope of Work Required | C30: ERI Configuration Management System | D30: Data disposal | E30: DATA RETENTION AND DISPOSITION | F30: Will ESKOM data (and all their copies, including backups) be destroyed in compliance with ESKOM data retention and disposition policies? | H30: Very important | I30: =IF(H30='Priority Ratings'!$C$21,'Priority Ratings'!$B$21,IF(H30='Priority Ratings'!$C$22,'Priority Ratings'!$B$22,IF(H30='Priority Ratings'!$C$23,'Priority Ratings'!$B$23,IF(H30='Priority Ratings'!$C$24,'Priority Ratings'!$B$24,IF(H30='Priority Ratings'!$C$25,'Priority Ratings'!$B$25,IF(H30='Priority Ratings'!$C$26,'Priority Ratings'!$B$26,IF(H30='Priority Ratings'!$C$27,'Priority Ratings'!$B$27,"No Rating"))))))) -> 4 | J30: 0.03448275862 | K30: 100%: Fully comply with requirement 0%: No compliance | M30: 0
A31: 23 | B31: Meeting the Scope of Work Required | C31: ERI Configuration Management System | D31: Data disposal | E31: DATA RETENTION AND DISPOSITION | F31: Will the Supplier deliver and/or give access to audit trails of the destruction activity? | H31: Very important | I31: =IF(H31='Priority Ratings'!$C$21,'Priority Ratings'!$B$21,IF(H31='Priority Ratings'!$C$22,'Priority Ratings'!$B$22,IF(H31='Priority Ratings'!$C$23,'Priority Ratings'!$B$23,IF(H31='Priority Ratings'!$C$24,'Priority Ratings'!$B$24,IF(H31='Priority Ratings'!$C$25,'Priority Ratings'!$B$25,IF(H31='Priority Ratings'!$C$26,'Priority Ratings'!$B$26,IF(H31='Priority Ratings'!$C$27,'Priority Ratings'!$B$27,"No Rating"))))))) -> 4 | J31: 0.03448275862 | K31: 100%: Fully comply with requirement 0%: No compliance | M31: 0
A32: 24 | B32: Meeting the Scope of Work Required | C32: ERI Configuration Management System | D32: Data disposal | E32: DATA RETENTION AND DISPOSITION | F32: Will the Supplier provide an attestation, report, or statement of deletion (if required by ESKOM internal or legal destruction policies)? | H32: Very important | I32: =IF(H32='Priority Ratings'!$C$21,'Priority Ratings'!$B$21,IF(H32='Priority Ratings'!$C$22,'Priority Ratings'!$B$22,IF(H32='Priority Ratings'!$C$23,'Priority Ratings'!$B$23,IF(H32='Priority Ratings'!$C$24,'Priority Ratings'!$B$24,IF(H32='Priority Ratings'!$C$25,'Priority Ratings'!$B$25,IF(H32='Priority Ratings'!$C$26,'Priority Ratings'!$B$26,IF(H32='Priority Ratings'!$C$27,'Priority Ratings'!$B$27,"No Rating"))))))) -> 4 | J32: 0.03448275862 | K32: 100%: Fully comply with requirement 0%: No compliance | M32: 0
A33: 25 | B33: Meeting the Scope of Work Required | C33: ERI Configuration Management System | D33: Data protection and security | E33: SECURITY, CONFIDENTIALITY AND PRIVACY | F33: Will ESKOM be notified in case of a security breach or system malfunction? | H33: Very important | I33: =IF(H33='Priority Ratings'!$C$21,'Priority Ratings'!$B$21,IF(H33='Priority Ratings'!$C$22,'Priority Ratings'!$B$22,IF(H33='Priority Ratings'!$C$23,'Priority Ratings'!$B$23,IF(H33='Priority Ratings'!$C$24,'Priority Ratings'!$B$24,IF(H33='Priority Ratings'!$C$25,'Priority Ratings'!$B$25,IF(H33='Priority Ratings'!$C$26,'Priority Ratings'!$B$26,IF(H33='Priority Ratings'!$C$27,'Priority Ratings'!$B$27,"No Rating"))))))) -> 4 | J33: 0.03448275862 | K33: 100%: Fully comply with requirement 0%: No compliance | M33: 0
A34: 26 | B34: Meeting the Scope of Work Required | C34: ERI Configuration Management System | D34: Data protection and security | E34: SECURITY, CONFIDENTIALITY AND PRIVACY | F34: Please specify the location where all systems will be located and advise ESKOM’s access rights to such location and facilities. | H34: Very important | I34: =IF(H34='Priority Ratings'!$C$21,'Priority Ratings'!$B$21,IF(H34='Priority Ratings'!$C$22,'Priority Ratings'!$B$22,IF(H34='Priority Ratings'!$C$23,'Priority Ratings'!$B$23,IF(H34='Priority Ratings'!$C$24,'Priority Ratings'!$B$24,IF(H34='Priority Ratings'!$C$25,'Priority Ratings'!$B$25,IF(H34='Priority Ratings'!$C$26,'Priority Ratings'!$B$26,IF(H34='Priority Ratings'!$C$27,'Priority Ratings'!$B$27,"No Rating"))))))) -> 4 | J34: 0.03448275862 | K34: 100%: Fully comply with requirement 0%: No compliance | M34: 0
A35: 27 | B35: Meeting the Scope of Work Required | C35: ERI Configuration Management System | D35: Supplier/Vendor accreditation | E35: ACCREDITATION AND AUDITING | F35: Is the Supplier audited on a systematic, regular and independent basis by a third-party in order to demonstrate compliance with security, confidentiality and privacy policies? | H35: Very important | I35: =IF(H35='Priority Ratings'!$C$21,'Priority Ratings'!$B$21,IF(H35='Priority Ratings'!$C$22,'Priority Ratings'!$B$22,IF(H35='Priority Ratings'!$C$23,'Priority Ratings'!$B$23,IF(H35='Priority Ratings'!$C$24,'Priority Ratings'!$B$24,IF(H35='Priority Ratings'!$C$25,'Priority Ratings'!$B$25,IF(H35='Priority Ratings'!$C$26,'Priority Ratings'!$B$26,IF(H35='Priority Ratings'!$C$27,'Priority Ratings'!$B$27,"No Rating"))))))) -> 4 | J35: 0.03448275862 | K35: 100%: Fully comply with requirement 0%: No compliance | M35: 0
G37: Totals | I37: =SUM(I9:I35) -> 116 | J37: =SUM(J9:J35) -> 1 | M37: =SUM(M9:M35) -> 0

Sheet Priority Ratings (hidden)
B20: Priority rating | C20: Priority Description | E20: Score Ratings | F20: Score Description
B21: 0 | C21: No interest | E21: 0 | F21: 0% Compliance
B22: 1 | C22: Nice to have | E22: 0.25 | F22: 25% Compliance
B23: 2 | C23: Useful | E23: 0.5 | F23: 50% Compliance
B24: 3 | C24: Important | E24: 0.75 | F24: 75% Compliance
B25: 4 | C25: Very important | E25: 1 | F25: 100% Compliance
B26: 5 | C26: Critical
B27: 6 | C27: Show stopper
B29: Please do NOT delete this sheet.

Sheet Config (hidden)
B2: Solution | D2: Priority rating | E2: Priority Description | G2: Category
B3: Chatbot | D3: 0 | E3: No interest | G3: Functional
B4: Social Media API | D4: 1 | E4: Nice to have | G4: Technical Evaluation
B5: Chatbot and Social Media API | D5: 2 | E5: Useful | G5: Integration and Testing
D6: 3 | E6: Important | G6: Cloud
D7: 4 | E7: Very important
D8: 5 | E8: Critical
D9: 6 | E9: Show stopper
B13: Please do NOT delete this sheet. The items are used in the drop down lists

Sheet Concerns and Recommendations (hidden)
A1: Note: Not applicable for the vendors / Tenderers / respondents. This sheet is not needed for issuing the Tendor. Useful for making recommendatins after evaluation.
B2: Please do NOT delete this sheet.
B3: Recommendation
B19: Concerns
